Cogmind - Beta 15 @@@ ROGUE MODE // 2025.05.29 @ 22:26:04 Player: ChromeShaman Result: Destroyed by QY-7QE(R) with Subdweller Shrapnel Launcher Performance ------------- Evolutions (0) 0 Regions Visited (2) 400 Robots Destroyed (20) 100 Value Destroyed (509) 509 Prototype IDs (0) 0 Alien Tech Used (0) 0 Bonus (0) 0 TOTAL SCORE: 1009 Bonus ------- None Cogmind --------- Core Integrity 0/250 Matter 220/300 Energy 100/100 System Corruption 0% Temperature Cool (0) Movement Core (50) Location -10/Subcaves Parts ------- > --- POWER (1) -------- (None) > --- PROPULSION (2) --- (None) > --- UTILITY (2) ------ Signal Interpreter > --- WEAPON (2) ------- (None) > --- INVENTORY (5) ---- Sensor Array Subdweller Machine Gun Subdweller Machine Gun Datajack Scrap Shield Fragment (2) Peak State ------------ > --- POWER ------------ Light Nuclear Core > --- PROPULSION ------- Light Treads Light Treads > --- UTILITY ---------- Small Storage Unit Backup Plating I > --- WEAPON ----------- Light Assault Rifle Light Assault Rifle > --- INVENTORY -------- Ion Engine Medium Laser Assault Rifle Grenade Launcher [Rating: 9] Favorites ----------- Power Ion Engine Engine Ion Engine Power Core Light Nuclear Core Propulsion Light Treads Treads Light Treads Utility Signal Interpreter Device Sensor Array Storage Small Storage Unit Processor Signal Interpreter Protection Backup Plating I Weapon Grenade Launcher Energy Gun Medium Laser Ballistic Gun Light Assault Rifle Launcher Grenade Launcher Build | -11 -10 -10 ------- Run | Yrd Mat Sub Slots Evolved . | . . . Power . | . . . Propulsion . | . . . Utility . | . . . Weapon . | . . . Parts Attached 24 | 6 16 2 Power 5 | 1 4 . Engine 3 | 1 2 . Core 2 | . 2 . Reactor . | . . . Propulsion 4 | 2 2 . Treads 4 | 2 2 . Leg . | . . . Wheel . | . . . Hover . | . . . Flight . | . . . Utility 6 | 1 5 . Device 2 | . 2 . Storage 2 | 1 1 . Processor 1 | . 1 . Hackware . | . . . Protection 1 | . 1 . Artifact . | . . . Weapon 9 | 2 5 2 Energy Gun 1 | . 1 . Energy Cannon . | . . . Ballistic Gun 4 | 2 1 1 Ballistic Cannon . | . . . Launcher 4 | . 3 1 Special Weapon . | . . . Impact Weapon . | . . . Slashing Weapon . | . . . Piercing Weapon . | . . . Special Melee Weapon . | . . . Unidentified Prototypes . | . . . Parts Lost 7 | . 1 6 Power 1 | . . 1 Propulsion 2 | . . 2 Utility 2 | . 1 1 Weapon 2 | . . 2 Highest Loss Streak 6 | . 1 6 To Critical Strikes . | . . . Average Backups 3 | 1 3 4 Power . | . . . Propulsion . | . . . Utility 1 | . . 1 Weapon 1 | . 2 1 Tool/Special . | . . . Unused Backups 11 | . 3 8 Power 3 | . 1 2 Propulsion . | . . . Utility 2 | . . 2 Weapon 5 | . 2 3 Tool/Special 1 | . . 1 Average Slot Usage (%) 98 | . 98 97 Engine 11 | . 10 13 Core 2 | . 3 . Treads 27 | . 27 28 Device 10 | . 7 13 Storage 3 | . 6 . Processor 10 | . 7 14 Protection 2 | . 4 . Ballistic Gun 8 | . 13 . Launcher 18 | . 14 25 Peak Build Rating 9 | 6 9 8 Average Rating 7 | 4 7 7 On Entrance 4 | . 6 7 Naked Turns . | . . . Heaviest Build 31 | 13 31 17 Greatest Support 40 | 40 40 40 Greatest Overweight (x) 2 | . . 2 Average Overweight (x) . | . . . Largest Inventory Capacity 15 | 8 15 5 Average Capacity 6 | 6 6 5 Most Carried 5 | 3 5 5 Average Carried 3 | 1 3 4 Final Capacity 8 | 8 5 5 Final Carried 5 | 2 5 5 Class Distribution -------------------- 100% | Mutant Dominant Class ---------------- Mutant | -10/Materials Mutant | -10/Subcaves Resources | -11 -10 -10 ----------- Run | Yrd Mat Sub Matter Collected 771 | 179 337 255 Remotely . | . . . Salvage Created 468 | . 438 30 Parts 38 | . 34 4 Haulers Intercepted 1 | . 1 . Recyclers Shooed 2 | . 2 . Parts Field Recycled . | . . . Retrieved Matter . | . . . Parts Self-Destructed 7 | . . 7 Prevented . | . . . Kills | -11 -10 -10 ------- Run | Yrd Mat Sub Combat Hostiles Destroyed 10 | . 8 2 Melee 1 | . 1 . Guns 5 | . 5 . AOE 4 | . 2 2 Classes Destroyed 9 | . 7 2 Worker 2 | . 2 . Builder 2 | . 2 . Tunneler 1 | . 1 . Hauler 1 | . 1 . Operator 1 | . 1 . Watcher 3 | . 3 . Grunt 8 | . 8 . Cobbler 1 | . . 1 Subdweller 2 | . . 2 Best Kill Streak 3 | . 3 1 Combat Bots Only 2 | . 2 1 Max Kills in Single Turn 2 | . 2 1 Gunslinging . | . . . Exploded 1 | . 1 1 Melee 1 | . 1 . Uniques/NPCs Destroyed . | . . . Combat | -11 -10 -10 -------- Run | Yrd Mat Sub Hostile Shots Fired 63 | . 49 14 Missed 14 | . 11 3 Hits 49 | . 38 11 Projectile 49 | . 38 11 AOE 10 | . . 10 Critical Strikes 2 | . 2 . Damage Taken 1291 | . 691 600 Core 295 | . 82 213 Absorbed by Shields . | . . . Core Remaining (%) 100 | 100 . . Volleys Fired 55 | . 48 7 Largest 2 | . 2 2 Hottest 60 | . 60 60 Shots Fired 101 | . 92 9 Gun 75 | . 75 . Cannon . | . . . Launcher 26 | . 17 9 Special . | . . . Kinetic 80 | . 75 5 Thermal . | . . . Explosive 21 | . 17 4 Electromagnetic . | . . . Robot Hit Streak 13 | . 13 11 Robot Miss Streak 3 | . 3 . Penetration Max . | . . . Secondary Targets . | . . . Shots Hit Robots 65 | . 58 7 Core Hits 48 | . 40 8 Critical Kills . | . . . Critical Parts Destroyed 1 | . 1 . Critical Strikes 1 | . 1 . Destroy 1 | . 1 . Melee Attacks . | . . . Impact . | . . . Slashing . | . . . Piercing . | . . . Sneak Attacks . | . . . Combat Hostiles . | . . . Follow-up Attacks . | . . . Damage Inflicted 1594 | . 1069 525 Guns 422 | . 422 . Cannons . | . . . Explosions 1165 | . 640 525 Melee . | . . . Ramming 7 | . 7 . Kinetic 855 | . 422 433 Thermal . | . . . Explosive 732 | . 640 92 Electromagnetic . | . . . Impact . | . . . Slashing . | . . . Piercing . | . . . Highest Corruption . | . . . Average Corruption . | . . . Corruption Purged . | . . . Corruption Blocked . | . . . Overload Shots . | . . . Overflow Damage 6 | . 6 . Projectiles . | . . . Explosions 6 | . 6 . Melee . | . . . Knockbacks . | . . . Impact . | . . . Kinetic . | . . . Secondary . | . . . Self-Inflicted Damage 152 | . 144 8 Shots 9 | . 8 1 Rammed 6 | . 6 . Targets Rammed 7 | . 7 . Kicked . | . . . Crushed 1 | . 1 . Highest Temperature 42 | . 42 . Average Temperature 16 | . 16 . Received Heat Transfer 345 | . 345 . Siege Activations . | . . . Martial Activations . | . . . Shielding Activations . | . . . Robots Disrupted . | . . . Combat Hostiles . | . . . Robots Corrupted . | . . . Combat Hostiles . | . . . Parts Fried . | . . . Impact Corruptions . | . . . Robots Melted . | . . . Combat Hostiles . | . . . Parts Melted . | . . . Heat Transferred . | . . . Parts Sabotaged . | . . . Parts Stolen . | . . . Parts Stripped . | . . . Power Chain Reactions . | . . . Alert | -11 -10 -10 ------- Run | Yrd Mat Sub Maximum Alert Level . | . . . Low Security (%) 100 | 100 100 . Level 1 . | . . . Level 2 . | . . . Level 3 . | . . . Level 4 . | . . . Level 5 . | . . . High Security . | . . . Max Security . | . . . Peak Influence 89 | . 89 . Initial . | . . . Average 14 | . 14 . Influence Increases 385 | . 385 . Destroy 0b10 Robot/C 160 | . 160 . Destroy 0b10 Robot/NC 50 | . 50 . Destroy Leader 48 | . 48 . Disable Machine 30 | . 30 . Destroy Structure 97 | . 97 . Influence Decreases 385 | . 308 77 Entered New Map 37 | . . 37 Time Decay 338 | . 298 40 Lost Part 10 | . 10 . Squads Dispatched 1 | . 1 . Investigation 1 | . 1 . Extermination . | . . . Reinforcement . | . . . Assault . | . . . Garrison . | . . . Intercept . | . . . Searches Triggered . | . . . Construction Impeded . | . . . Haulers Reinforced . | . . . Active Scanning Responses . | . . . Cargo Convoy Interrupts . | . . . Stealth | -11 -10 -10 --------- Run | Yrd Mat Sub Distress Signals 1 | . 1 . Communications Jammed . | . . . Distress Signals . | . . . Times Spotted 23 | . 20 3 Peak Tracking Total 3 | . 3 1 Tactical Retreats . | . . . Traps | -11 -10 -10 ------- Run | Yrd Mat Sub Traps Triggered 1 | . 1 . Indirectly . | . . . Trap Hack Attempts . | . . . Triggered . | . . . Disarmed . | . . . Reprogrammed . | . . . Reused . | . . . Traps Extracted . | . . . Installed . | . . . Triggered . | . . . Machines | -11 -10 -10 ---------- Run | Yrd Mat Sub Machines Disabled 2 | . 2 . Max in Single Turn 1 | . 1 . Machines Repaired . | . . . Machines Dismantled . | . . . Machines Sabotaged . | . . . Overloaded Fab Kills . | . . . Hacking | -11 -10 -10 --------- Run | Yrd Mat Sub Machines Accessed 10 | . 9 1 Terminals 7 | . 7 . Fabricators . | . . . Repair Stations 1 | . 1 . Recycling Units 1 | . 1 . Scanalyzers . | . . . Garrison Access . | . . . Total Hacks 23 | . 18 5 Successful 13 | . 8 5 Failed 10 | . 10 . Catastrophic 1 | . 1 . Database Lockouts . | . . . Manual 3 | . 2 1 Terminals 12 | . 12 . Fabricators . | . . . Repair Stations 4 | . 4 . Recycling Units 2 | . 2 . Scanalyzers . | . . . Garrison Access . | . . . Terminal Hacks 10 | . 5 5 Record 5 | . . 5 Alert Level 2 | . 2 . Locate Traps 1 | . 1 . Recall Investigation 1 | . 1 . Zone Layout 1 | . 1 . Fabricator Hacks . | . . . Repair Station Hacks 1 | . 1 . Refit 1 | . 1 . Recycling Unit Hacks 2 | . 2 . Process 1 | . 1 . Report Inventory 1 | . 1 . Scanalyzer . | . . . Garrison Access Hacks . | . . . Unauthorized Hacks . | . . . Terminals . | . . . Fabricators . | . . . Repair Stations . | . . . Recycling Units . | . . . Scanalyzers . | . . . Garrison Access . | . . . Data Cores Recovered . | . . . Used . | . . . Hacking Detections 6 | . 6 . Full Trace Events . | . . . Feedback Events . | . . . Feedback Blocked . | . . . Robot Schematics Acquired . | . . . Robots Built . | . . . Authchips . | . . . Time . | . . . Total Robot Build Rating . | . . . Part Schematics Acquired . | . . . Parts Built . | . . . Authchips . | . . . Time . | . . . Total Part Build Rating . | . . . Parts Repaired . | . . . Time . | . . . Parts Recycled . | . . . Recycled Matter 144 | . 144 . Retrieved Matter . | . . . Retrieved Components . | . . . Parts Scanalyzed . | . . . Part Schematics Acquired . | . . . Parts Damaged . | . . . Bothacking | -11 -10 -10 ------------ Run | Yrd Mat Sub Used RIF Installer . | . . . Robots Hacked . | . . . Non-combat . | . . . Combat . | . . . Robot Hacks Applied . | . . . Relay Couplers Released . | . . . Fabnet Peak Effective % . | . . . Robots Rewired . | . . . Allies Hacked . | . . . Hacks Repelled . | . . . Allies | -11 -10 -10 -------- Run | Yrd Mat Sub Total Allies . | . . . Largest Group . | . . . Highest-Rated Group . | . . . Highest-Rated Ally . | . . . Total Orders . | . . . Ally Attacks . | . . . Total Damage . | . . . Kills . | . . . Allies Corrupted . | . . . Allies Melted . | . . . Intel | -11 -10 -10 ------- Run | Yrd Mat Sub Active Infowar (turns) 2107 | . 967 1140 Sensors 2107 | . 967 1140 Robot Analysis Total . | . . . Derelict Logs Recovered . | . . . Drone Launches . | . . . Drone Recoveries . | . . . Exploration | -11 -10 -10 ------------- Run | Yrd Mat Sub Turns Passed 2952 | 66 1737 1149 Spaces Moved 1652 | 36 927 689 Core 5 | 4 . 1 Treads 1647 | 32 927 688 Legs . | . . . Wheels . | . . . Hover . | . . . Flight . | . . . Fastest Speed 50 | 50 160 150 Average Speed 159 | 147 160 159 Slowest Speed 160 | 160 160 160 Overloaded Moves . | . . . Propulsion Burnouts . | . . . Robots Hopped . | . . . Potential Cave-ins . | . . . Cave-ins Triggered . | . . . Exploration Rate (%) 42 | 4 91 31 Regions Visited 2 Branch Regions 1 Pre-discovered Areas 1 | . . 1 Known Exits Taken 1 | . 1 . Unknown Exits Taken 1 | 1 . . Scrap Searched . | . . . Spaces Dug . | . . . Terrain Destroyed 146 | . 106 40 Melee . | . . . Projectile . | . . . AOE 146 | . 106 40 Terrain Rammed . | . . . Walls Destroyed . | . . . Machines Disabled . | . . . Actions | -11 -10 -10 --------- Run | Yrd Mat Sub Total 1893 | 49 1110 734 Wait 63 | . 62 1 Move 1650 | 35 926 689 Hop . | . . . Pick Up 43 | 8 19 16 Fast Attach . | . . . Attach 26 | 6 16 4 Detach 13 | . 13 . Swap 5 | . 4 1 Drop 31 | . 15 16 Fire 55 | . 48 7 Melee . | . . . Ram . | . . . Kick . | . . . Crush 7 | . 7 . Escape Stasis . | . . . Rewire . | . . . Trap . | . . . Miscellaneous . | . . . Route ------- -11/Scrapyard -10/Materials (discovered 4 exits: *Mat x2 / *Min / *Sub) -10/Subcaves (discovered 1 exit: *Mat) History --------- Turn | Location | Event 40 | -11/Scrapyard | Discovered new exit (range 15) 67 | -11/Scrapyard | Entered Materials 322 | -10/Materials | Build established: Mutant 516 | -10/Materials | Discovered new exit (range 11) 972 | -10/Materials | Identified exit to Mines 1387 | -10/Materials | Discovered new exit (range 16) 1512 | -10/Materials | Identified exit to Materials 1589 | -10/Materials | Discovered exit to Materials (range 8) 1621 | -10/Materials | Discovered new exit (range 8) 1632 | -10/Materials | Identified exit to Subcaves 1804 | -10/Materials | Entered Subcaves 1845 | -10/Subcaves | Shifting Twisted Machinery released Sub. Machine Gun 1860 | -10/Subcaves | Shifting Twisted Machinery released Flamer 2307 | -10/Subcaves | Curiously followed by a Cobbler waking with a query about "LVR3C" 2532 | -10/Subcaves | Visited Clippyterm 2537 | -10/Subcaves | Learned location of Deep Caves (-7) 2537 | -10/Subcaves | Learned Factory stockpile data 2546 | -10/Subcaves | Discovered new exit (range 15) 2569 | -10/Subcaves | Identified exit to Materials 2665 | -10/Subcaves | Shifting Twisted Machinery released Sub. Machine Gun 2803 | -10/Subcaves | Shifting Twisted Machinery released Sub. Shrapnel Launcher 2920 | -10/Subcaves | Core integrity fell below 50% 2944 | -10/Subcaves | Ambushed by angry Subdweller bent on revenge 2950 | -10/Subcaves | Core integrity fell below 20% 2953 | -10/Subcaves | Destroyed by QY-7QE(R) with Subdweller Shrapnel Launcher Last Messages --------------- 02883_ 19-VR9(O) collects matter. 02898_ 19-VR9(O) puts together Riot Gun. 02900_ Acquired 10 matter. 02917_ 19-VR9(O) cries out in pain. 02917_ 19-VR9(O) destroyed. 02919_ Grenade Launcher destroyed. 02921_ Ion Engine destroyed. 02921_ 3F-JT3(R) destroyed. 02925_ Subatomizers dissect the Grenade Launcher. 02939_ Subatomizers dissect the Grenade Launcher, destroying it. 02942_ Dropped Sub. Optics. 02944_ QY-7QE(R) angrily emerges from the Twisted Machinery. 02944_ QY-7QE(R): "OHNO!" 02944_ Sensor Array destroyed. 02946_ Acquired Scrap Shield Fragment. 02951_ Lgt. Treads destroyed. 02953_ Sub. Shrapnel Launcher destroyed. Map ----- +----------------------------------------------------+ | ??????????????????????????????# ###??? | | ??????????????????????????#??## [ ### ##????? | | ?????????????????????????## ## #### ###???? | | ?????????????????????????# ## # ##??? | | ?????????????????????????## = #??? | | ??????????????????????????# """ #??? | | ??????????????????????????## ""##"" ## #??? | | ?????????????????????????###""" ""#########| #??? | | ?????????????????????????" ""### #####????# ##??? | | ?????????????????????????#""#### ## ##??## ##??? | | ?????????????????????????#""""" ## #### #??? | | ????????????????????????## "" ## ## #??? | | ????????????????????????# ""## # ##?? | | ?????????????????????????# #### #?? | | ????????????????????????## R ## ### ##?? | | ???????????????????????## [ ######### #??? | | ??????????????????????##; ## #### ##??? | | ??????????????????????# " #???? | | ????????????????????### " #???? | | ??????????????????### # #???? | | ?????????????????## ! #???? | | ?????????????????# "##???? | | ?????????????????## #????? | | ??????????????????### #????? | | ????????????????????#; "#????? | | ????????????????????# @ #????? | | ????????????????????#; #### #????? | | ????????????????????# ; ;; #??### ######????? | | ???????????????????#"" # ##???###?????????? | | ???????????????????#"""" ## #???????????????? | | ???????????????????#""""##### ##???????????????? | | ???????????????????## ""????#####????????????????? | | ????????????????????# ""?????????????????????????? | | ????????????????????#?""?????????????????????????? | | ?????????????????????????????????????????????????? | | ?????????????????????????????????????????????????? | | ?????????????????????????????????????????????????? | | ?????????????????????????????????????????????????? | | ?????????????????????????????????????????????????? | | ?????????????????????????????????????????????????? | | ?????????????????????????????????????????????????? | | ?????????????????????????????????????????????????? | | ?????????????????????????????????????????????????? | | ?????????????????????????????????????????????????? | | ?????????????????????????????????????????????????? | | ?????????????????????????????????????????????????? | | ?????????????????????????????????????????????????? | | ?????????????????????????????????????????????????? | | ?????????????????????????????????????????????????? | | ?????????????????????????????????????????????????? | +----------------------------------------------------+ Best States ------------- Heat Dissipation 25 Energy Generation 14 Energy Capacity 250 Matter Stores 300 Matter Capacity 300 Sight Range 16 Robot Scan Range 14 Terrain Scan Density 10 Armor Coverage 80 Utility Shielding 33 Evasion (%) 40 Recoil Reduction 2 Item Schematics ----------------- None Robot Schematics ------------------ None Fabricated ------------ Nothing Repaired ---------- Nothing Alien Tech Used ----------------- None Achievements -------------- None Challenges ------------ None Game ------ Seed ThunderSurgeDesublimator Manual? 0 Play Time 00:33:33 Cumulative 1.1 hours Start 2025.05.29 @ 21:49:34 End 2025.05.29 @ 22:26:04 Sessions 1 Manual Loads 0 Difficulty Rogue Special Mode None Game No. 5 Rogue 5 Adventurer 0 Explorer 0 Win Type - Total 0 Types 0/0/0/0/0/0/0/0/0/0 Lore% 0 Gallery% 2 Achievement% 16 Wizard Run 0 Options --------- Layout 1 ASCII 0 Keyboard 1 Movement Numpad Keybinds 0 Fullscreen 0 Font 20/SmallcapsGlow Map View 50x35 Zoom Use 0% Tactical HUD 1 Map Filters NONE Filters NONE Steam 1 RUN: 1d552481-fe2d-4c91-956d-3159666d7f87